Cogmind - Beta 11.1 @@@ ROGUE MODE // 2022.05.08 @ 21:39:59 Player: RNGesus Result: Destroyed by as-06141 with Assembled F-torch Performance ------------- Evolutions (3) 1500 Regions Visited (12) 2400 Robots Destroyed (164) 820 Value Destroyed (5013) 5013 Prototype IDs (44) 880 Alien Tech Used (0) 0 Bonus (2566) 2566 TOTAL SCORE: 13179 Bonus ------- High Alert Combat Kills 479 Follower Combat Kills 379 Destroyed Z-Imprinter 1000 Triggered Deep Caves Wall 500 Exposed GOLEM Chamber 500 Friendly Fire -292 Cogmind --------- Core Integrity 0/700 Matter 141/300 Energy 100/100 System Corruption 0% Temperature Warm (146) Movement Walking (202) Ox1 Location -7/Deep Caves Parts ------- > --- POWER (1) -------- Zionite Light DM Reactor > --- PROPULSION (4) --- Improved Titanium Leg Zionite Composite Leg I Zionite Composite Leg I Advanced Myomer Leg > --- UTILITY (5) ------ Huge Storage Unit Advanced Targeting Computer Zionite Weapon Casing > --- WEAPON (3) ------- Zionite Phaser-S Heavy Battle Rifle Proton Missile Launcher > --- INVENTORY (25) --- Improved Titanium Leg Advanced Myomer Leg Experimental Heat Sink Weapon Cycler Experimental Reaction Control System Force Rifle EM Pulse Cannon EM Pulse Cannon Cooled Plasma Cannon Cooled Plasma Cannon Flak Gun AWS/Autocannon Plasma Cutter CR-A16's Pointy Stick Self-destruct Interrupter (50) Peak State ------------ > --- POWER ------------ Zionite Light DM Reactor > --- PROPULSION ------- Improved Titanium Leg Zionite Composite Leg I Advanced Myomer Leg Advanced Myomer Leg > --- UTILITY ---------- Experimental Heat Sink Huge Storage Unit Advanced Targeting Computer Zionite Heavy Carapace > --- WEAPON ----------- Force Rifle Zionite Phaser-S Heavy Battle Rifle > --- INVENTORY -------- Improved Titanium Leg Zionite Biocell Experimental Signal Interpreter Active Sensor Suite Surveybot 24 Scanner Surveybot 24 Chip Weapon Cycler Experimental Reaction Control System Mobile Refinery Mk. CCLXVII Bomb Factory No. 2 Force Rifle EM Pulse Cannon EM Pulse Cannon Cooled Plasma Cannon Cooled Plasma Cannon AWS/Autocannon Proton Missile Launcher Plasma Cutter CR-A16's Pointy Stick Self-destruct Interrupter [Rating: 90] Favorites ----------- Power Improved Ion Engine Engine Improved Ion Engine Power Core Enhanced Fission Core Reactor Zionite Light DM Reactor Propulsion Light Treads Treads Light Treads Leg Advanced Myomer Leg Wheel Armored Huge Wheel Utility Huge Storage Unit Device Cooling System Storage Huge Storage Unit Processor Advanced Targeting Computer Hackware Hacking Suite Protection Improved Light Armor Plating Weapon Heavy Assault Rifle Energy Gun Force Rifle Energy Cannon Cooled Plasma Cannon Ballistic Gun Heavy Assault Rifle Ballistic Cannon Improved Light Cannon Launcher Improved Grenade Launcher Impact Weapon Mace Piercing Weapon CR-A16's Pointy Stick Build | -11 -10 -10 -9 -9 -9 -8 -8 -7 -7 -7 -7 -7 ------- Run | Scr Mat Min Mat Min Exi Min Mat Fac Low Low Zio Dee Slots Evolved 6 | . . . 2 . . . 2 2 . . . . Power . | . . . . . . . . . . . . . Propulsion 2 | . . . 1 . . . . 1 . . . . Utility 3 | . . . 1 . . . 2 . . . . . Weapon 1 | . . . . . . . . 1 . . . . Parts Attached 148 | 6 3 . 23 1 2 . 24 31 1 5 14 38 Power 14 | 1 1 . 1 . . . 2 4 . . 1 4 Engine 4 | 1 . . 1 . . . 1 1 . . . . Core 6 | . 1 . . . . . 1 2 . . 1 1 Reactor 4 | . . . . . . . . 1 . . . 3 Propulsion 38 | 2 . . 10 . 2 . 9 6 1 1 3 4 Treads 24 | 2 . . 10 . 2 . 6 2 . 1 1 . Leg 13 | . . . . . . . 3 3 1 . 2 4 Wheel 1 | . . . . . . . . 1 . . . . Hover . | . . . . . . . . . . . . . Flight . | . . . . . . . . . . . . . Utility 48 | 1 2 . 3 1 . . 7 11 . . 4 19 Device 16 | . 1 . . . . . 1 4 . . 3 7 Storage 3 | 1 1 . . . . . . . . . . 1 Processor 4 | . . . . . . . 1 2 . . . 1 Hackware 1 | . . . . . . . . 1 . . . . Protection 24 | . . . 3 1 . . 5 4 . . 1 10 Artifact . | . . . . . . . . . . . . . Weapon 48 | 2 . . 9 . . . 6 10 . 4 6 11 Energy Gun 7 | 1 . . . . . . . 1 . 1 . 4 Energy Cannon 4 | . . . . . . . . 1 . 1 1 1 Ballistic Gun 24 | 1 . . 6 . . . 4 6 . 1 3 3 Ballistic Cannon 1 | . . . 1 . . . . . . . . . Launcher 10 | . . . 2 . . . 2 2 . 1 1 2 Special Weapon . | . . . . . . . . . . . . . Impact Weapon 1 | . . . . . . . . . . . 1 . Slashing Weapon . | . . . . . . . . . . . . . Piercing Weapon 1 | . . . . . . . . . . . . 1 Special Melee Weapon . | . . . . . . . . . . . . . Unidentified Prototypes 21 | . . . 1 . . . 1 6 . . 2 11 Parts Lost 21 | . 1 . 2 . . . 4 5 . . . 9 Power 5 | . 1 . . . . . 1 1 . . . 2 Propulsion 1 | . . . . . . . . 1 . . . . Utility 10 | . . . 1 . . . 2 2 . . . 5 Weapon 5 | . . . 1 . . . 1 1 . . . 2 Highest Loss Streak 3 | . 1 . 1 . . . 2 2 . . . 3 To Critical Strikes . | . . . . . . . . . . . . . Average Slot Usage (%) 96 | . 97 100 98 100 100 100 97 86 100 100 92 88 Engine 5 | . 13 . 10 11 11 11 8 3 . . . . Core 3 | . . 14 . . . . . 3 7 7 7 2 Treads 18 | . 28 28 32 33 33 33 16 1 7 7 5 . Leg 11 | . . . . . . . 10 14 23 23 24 30 Device 5 | . 12 14 2 . . . 7 6 7 7 7 4 Storage 9 | . 14 14 11 11 11 11 9 7 7 7 7 7 Processor 3 | . . . . . . . 7 8 7 7 7 7 Protection 12 | . . . 18 22 22 22 17 8 15 15 7 8 Energy Gun 4 | . 14 14 1 . . . . 1 7 6 7 6 Ballistic Gun 17 | . 14 14 19 22 22 22 17 19 15 15 12 14 Naked Turns . | . . . . . . . . . . . . . Heaviest Build 138 | 11 90 90 100 99 99 99 108 116 116 119 130 138 Greatest Support 108 | 40 40 40 63 63 63 63 67 80 80 80 100 108 Greatest Overweight (x) 4 | . 2 2 2 1 1 1 2 4 1 1 1 1 Average Overweight (x) 1 | . 1 2 1 1 1 1 1 3 1 1 1 . Largest Inventory Capacity 25 | 8 25 25 25 25 25 25 25 25 25 25 25 25 Average Capacity 24 | 7 22 25 25 25 25 25 25 25 25 25 25 25 Most Carried 25 | 2 14 12 24 25 25 25 25 25 25 25 25 25 Average Carried 21 | 1 8 12 17 24 24 25 24 24 25 24 24 23 Final Capacity 25 | 8 25 25 25 25 25 25 25 25 25 25 25 25 Final Carried 25 | 2 12 12 23 25 25 25 25 25 25 25 25 17 Class Distribution -------------------- 52% | Mutant 18% | Scavenger-Mutant 14% | Gunner 13% | Tank Dominant Class ---------------- Mutant | -10/Materials Mutant | -10/Mines Scavenger-Mutant | -9/Materials Scavenger-Mutant | -9/Mines Scavenger-Mutant | -9/Exiles Mutant | -8/Mines Mutant | -8/Materials Gunner | -7/Factory Tank | -7/Lower Caves Tank | -7/Lower Caves Mutant | -7/Zion Gunner | -7/Deep Caves Resources | -11 -10 -10 -9 -9 -9 -8 -8 -7 -7 -7 -7 -7 ----------- Run | Scr Mat Min Mat Min Exi Min Mat Fac Low Low Zio Dee Matter Collected 4133 | 145 200 9 790 16 18 38 1035 720 88 243 95 736 Remotely . | . . . . . . . . . . . . . Salvage Created 6394 | . 514 62 1486 . 50 12 1605 1612 . 163 . 890 Parts 363 | . 45 2 98 . . 4 98 74 . 5 . 37 Haulers Intercepted 10 | . 1 . 4 . . . 4 1 . . . . Recyclers Shooed 4 | . . . 1 . . . . 3 . . . . Parts Field Recycled . | . . . . . . . . . . . . . Retrieved Matter . | . . . . . . . . . . . . . Parts Self-Destructed 7 | . . . . . . . . . . 5 2 . Prevented 1 | . . . . . . . . . 1 . . . Kills | -11 -10 -10 -9 -9 -9 -8 -8 -7 -7 -7 -7 -7 ------- Run | Scr Mat Min Mat Min Exi Min Mat Fac Low Low Zio Dee Combat Hostiles Destroyed 121 | . 13 1 31 . . . 32 21 . 5 . 18 Guns 84 | . 13 1 23 . . . 25 12 . 1 . 9 Cannons 1 | . . . 1 . . . . . . . . . AOE 34 | . . . 7 . . . 7 9 . 4 . 7 Classes Destroyed 21 | . 6 1 5 . . . 2 3 . . . 4 Worker 12 | . . 1 4 . . . 2 5 . . . . Builder 9 | . 2 . 2 . . 1 1 3 . . . . Tunneler 1 | . . . 1 . . . . . . . . . Hauler 10 | . 1 . 4 . . . 4 1 . . . . Recycler 9 | . . . 2 . . . . 7 . . . . Mechanic 1 | . . . . . . . . 1 . . . . Operator 7 | . 3 . 2 . . . 1 1 . . . . Watcher 2 | . 1 . 1 . . . . . . . . . Swarmer 22 | . 6 . 9 . . . 7 . . . . . Grunt 44 | . 7 1 15 . . . 16 1 . 4 . . Duelist 1 | . . . 1 . . . . . . . . . Protector 3 | . . . 1 . . . . 2 . . . . Sentry 16 | . . . 5 . . . 7 4 . . . . Specialist 4 | . . . . . . . . 4 . . . . Hunter 8 | . . . . . . . 1 6 . 1 . . Programmer 3 | . . . . . . . . 3 . . . . Heavy 2 | . . . . . . . 1 1 . . . . Z-Light 7 | . . . . . . . . . . . . 7 Assembled 9 | . . . . . . . . . . . . 9 Golem 2 | . . . . . . . . . . . . 2 Thug 1 | . . . . . . . . . . . . 1 Fireman 1 | . . . . . . . . . . . . 1 Best Kill Streak 15 | . 5 1 6 . . 1 5 15 . 4 . 7 Combat Bots Only 10 | . 3 1 5 . . . 4 10 . 4 . 7 Max Kills in Single Turn 5 | . 2 1 2 . . 1 4 5 . 2 . 3 Gunslinging . | . . . . . . . . . . . . . Exploded 4 | . . . 2 . . . 3 4 . 2 . 3 Melee . | . . . . . . . . . . . . . Uniques/NPCs Destroyed 1 | . . . . . . . . . . . . 1 Z-Imprinter (-7/Deep Caves) Combat | -11 -10 -10 -9 -9 -9 -8 -8 -7 -7 -7 -7 -7 -------- Run | Scr Mat Min Mat Min Exi Min Mat Fac Low Low Zio Dee Damage Taken 9408 | . 427 99 1182 . . . 2245 1801 . 198 . 3456 Core 1145 | . 102 28 108 . . . 199 255 . 10 . 443 Absorbed by Shields . | . . . . . . . . . . . . . Redirected to Shielding 504 | . . . . . . . . . . . . 504 Regen/Repaired (Parts) 610 | . . . . . . . . . . . 610 . Core Remaining (%) 71 | 100 . 48 . . . 73 63 . . . . . Volleys Fired 447 | . 57 9 120 2 2 3 123 67 . 12 3 49 Largest 3 | . 2 2 2 2 2 2 2 3 . 3 3 3 Hottest 208 | . 70 70 70 46 46 46 48 131 . 131 208 141 Shots Fired 940 | . 114 18 232 4 4 6 240 182 . 26 5 109 Gun 894 | . 114 18 222 4 4 6 236 174 . 21 2 93 Cannon 18 | . . . 3 . . . . . . 2 3 10 Launcher 28 | . . . 7 . . . 4 8 . 3 . 6 Special . | . . . . . . . . . . . . . Kinetic 748 | . 57 9 194 4 4 6 236 157 . 14 1 66 Thermal 149 | . 57 9 31 . . . . 17 . 9 4 22 Explosive 25 | . . . 7 . . . 4 8 . 3 . 3 Electromagnetic 13 | . . . . . . . . . . . . 13 Phasic 5 | . . . . . . . . . . . . 5 Robot Hit Streak 45 | . 17 29 30 4 5 10 45 12 . 5 . 5 Robot Miss Streak 8 | . 6 1 4 1 . . 3 5 . 2 . 8 Penetration Max 1 | . . . . . . . . 1 . . . . Secondary Targets 7 | . 1 . 1 . . . 1 1 . . . 3 Max Gunslinging Chain 1 | . 1 . 1 . . . 1 1 . . . 1 Shots Hit Robots 658 | . 76 15 163 3 4 5 191 121 . 13 . 67 Core Hits 384 | . 35 7 76 1 1 1 84 95 . 10 . 74 Critical Kills 1 | . 1 . . . . . . . . . . . Critical Parts Destroyed 1 | . . . . . . . 1 . . . . . Critical Strikes 10 | . 6 1 1 . . . 1 . . . . 1 Burn 7 | . 5 1 1 . . . . . . . . . Destroy 2 | . 1 . . . . . 1 . . . . . Intensify 1 | . . . . . . . . . . . . 1 Melee Attacks 2 | . . . . . . . . . . . . 2 Impact . | . . . . . . . . . . . . . Slashing . | . . . . . . . . . . . . . Piercing 2 | . . . . . . . . . . . . 2 Sneak Attacks 1 | . . . . . . . . . . . . 1 Combat Hostiles . | . . . . . . . . . . . . . Follow-up Attacks . | . . . . . . . . . . . . . Damage Inflicted 14639 | . 820 147 2970 44 63 82 3523 4416 . 476 . 2098 Guns 9529 | . 820 147 2186 44 63 82 2946 2048 . 115 . 1078 Cannons 229 | . . . 48 . . . . . . . . 181 Explosions 4712 | . . . 736 . . . 569 2341 . 361 . 705 Melee 134 | . . . . . . . . . . . . 134 Ramming 35 | . . . . . . . 8 27 . . . . Kinetic 7969 | . 298 60 1923 44 63 82 2946 1768 . 92 . 693 Thermal 1509 | . 522 87 311 . . . . 280 . 23 . 286 Explosive 4125 | . . . 736 . . . 569 2310 . 361 . 149 Electromagnetic 768 | . . . . . . . . 31 . . . 737 Impact . | . . . . . . . . . . . . . Slashing . | . . . . . . . . . . . . . Piercing 134 | . . . . . . . . . . . . 134 Phasic 99 | . . . . . . . . . . . . 99 Highest Corruption 2 | . . . . . . . 2 . . . . . Average Corruption 2 | . . . . . . . 2 . . . . . Corruption Purged . | . . . . . . . . . . . . . Corruption Blocked . | . . . . . . . . . . . . . Effects 4 | . . . . . . . 4 . . . . . Matter Fused 3 | . . . . . . . 3 . . . . . Heat Flow Errors 1 | . . . . . . . 1 . . . . . Overload Shots 3 | . . . . . . . . . . . 3 . Effects 1 | . . . . . . . . . . . 1 . Short Circuit 1 | . . . . . . . . . . . 1 . Overflow Damage 133 | . . . 23 . . . 50 10 . . . 50 Projectiles . | . . . . . . . . . . . . . Explosions 88 | . . . 23 . . . 50 10 . . . 5 Melee 45 | . . . . . . . . . . . . 45 Knockbacks . | . . . . . . . . . . . . . Impact . | . . . . . . . . . . . . . Kinetic . | . . . . . . . . . . . . . Secondary . | . . . . . . . . . . . . . Self-Inflicted Damage 133 | . . . 120 . . . . 13 . . . . Shots 4 | . . . 4 . . . . . . . . . Rammed 3 | . . . . . . . 1 2 . . . . Targets Rammed 3 | . . . . . . . 1 2 . . . . Kicked . | . . . . . . . . . . . . . Crushed . | . . . . . . . . . . . . . Highest Temperature 532 | . 30 5 30 . . . 219 222 . 451 176 532 Average Temperature 90 | . 16 3 9 . . . 67 37 . 199 109 187 Received Heat Transfer 2737 | . 171 54 492 . . . 1044 159 . 36 . 781 Effects 16 | . . . . . . . . . . 1 . 15 Shutdowns 2 | . . . . . . . . . . . . 2 Energy Bleed 3 | . . . . . . . . . . 1 . 2 Interference 5 | . . . . . . . . . . . . 5 Damage (minor) 1 | . . . . . . . . . . . . 1 Damage (major) 5 | . . . . . . . . . . . . 5 Siege Activations . | . . . . . . . . . . . . . Robots Corrupted 2 | . . . . . . . . . . . . 2 Combat Hostiles 2 | . . . . . . . . . . . . 2 Parts Fried . | . . . . . . . . . . . . . Impact Corruptions . | . . . . . . . . . . . . . Robots Melted . | . . . . . . . . . . . . . Combat Hostiles . | . . . . . . . . . . . . . Parts Melted 7 | . 6 . 1 . . . . . . . . . Heat Transferred 4042 | . 1850 333 999 . . . . 407 . 37 . 416 Parts Sabotaged . | . . . . . . . . . . . . . Parts Stolen . | . . . . . . . . . . . . . Parts Stripped . | . . . . . . . . . . . . . Power Chain Reactions . | . . . . . . . . . . . . . Missiles Intercepted . | . . . . . . . . . . . . . Alert | -11 -10 -10 -9 -9 -9 -8 -8 -7 -7 -7 -7 -7 ------- Run | Scr Mat Min Mat Min Exi Min Mat Fac Low Low Zio Dee Peak Influence 769 | . 270 45 769 299 . 5 629 734 . . . . Initial 299 | . . 31 . 299 . . . 285 . . . . Average 200 | . 82 14 350 137 . . 293 459 . . . . Maximum Alert Level 3 | . 1 . 3 1 . . 2 3 . . . . Low Security (%) 60 | 100 94 100 31 65 . 100 40 . . . . . Level 1 20 | . 5 . 32 34 . . 26 43 . . . . Level 2 16 | . . . 26 . . . 32 47 . . . . Level 3 2 | . . . 9 . . . . 9 . . . . Level 4 . | . . . . . . . . . . . . . Level 5 . | . . . . . . . . . . . . . High Security . | . . . . . . . . . . . . . Max Security . | . . . . . . . . . . . . . Squads Dispatched 22 | . 5 . 5 1 . . 6 5 . . . . Investigation 7 | . 2 . 2 1 . . 2 . . . . . Extermination 1 | . . . . . . . . 1 . . . . Reinforcement 13 | . 3 . 2 . . . 4 4 . . . . Assault 1 | . . . 1 . . . . . . . . . Garrison . | . . . . . . . . . . . . . Intercept . | . . . . . . . . . . . . . Searches Triggered . | . . . . . . . . . . . . . Construction Impeded 1 | . . . . . . . 1 . . . . . Haulers Reinforced . | . . . . . . . . . . . . . Active Scanning Responses . | . . . . . . . . . . . . . Cargo Convoy Interrupts 1 | . . . . . . . . 1 . . . . Stealth | -11 -10 -10 -9 -9 -9 -8 -8 -7 -7 -7 -7 -7 --------- Run | Scr Mat Min Mat Min Exi Min Mat Fac Low Low Zio Dee Distress Signals 14 | . 1 . 5 . . . 6 2 . . . . Communications Jammed . | . . . . . . . . . . . . . Distress Signals . | . . . . . . . . . . . . . Times Spotted 239 | . 31 2 62 . . . 58 38 . 5 . 43 Peak Tracking Total 36 | . 5 2 9 . . . 5 12 . 4 . 36 Tactical Retreats 8 | . 3 . 2 . . . 2 . . . . 1 Traps | -11 -10 -10 -9 -9 -9 -8 -8 -7 -7 -7 -7 -7 ------- Run | Scr Mat Min Mat Min Exi Min Mat Fac Low Low Zio Dee Traps Triggered 5 | . 1 . . . . . 3 1 . . . . Indirectly . | . . . . . . . . . . . . . Trap Hack Attempts . | . . . . . . . . . . . . . Triggered . | . . . . . . . . . . . . . Disarmed . | . . . . . . . . . . . . . Reprogrammed . | . . . . . . . . . . . . . Reused 1 | . . . . . . . . . . . . 1 Traps Extracted . | . . . . . . . . . . . . . Installed 4 | . . . . . . . . . . . . 4 Triggered . | . . . . . . . . . . . . . Fabricated Traps 4 | . . . . . . . . . . . . 4 Most Traps Carried 4 | . . . . . . . . . . . . 4 Machines | -11 -10 -10 -9 -9 -9 -8 -8 -7 -7 -7 -7 -7 ---------- Run | Scr Mat Min Mat Min Exi Min Mat Fac Low Low Zio Dee Machines Disabled 12 | . . . 7 . . . 1 3 . . . 1 Max in Single Turn 4 | . . . 4 . . . 1 2 . . . 1 Garrison Access 1 | . . . . . . . 1 . . . . . Machines Sabotaged . | . . . . . . . . . . . . . Garrisons Compromised . | . . . . . . . . . . . . . Overloaded Fab Kills . | . . . . . . . . . . . . . Hacking | -11 -10 -10 -9 -9 -9 -8 -8 -7 -7 -7 -7 -7 --------- Run | Scr Mat Min Mat Min Exi Min Mat Fac Low Low Zio Dee Machines Accessed 20 | . 4 . 5 1 1 . 8 1 . . . . Terminals 15 | . 3 . 4 . . . 7 1 . . . . Fabricators . | . . . . . . . . . . . . . Repair Stations . | . . . . . . . . . . . . . Recycling Units 2 | . 1 . 1 . . . . . . . . . Scanalyzers . | . . . . . . . . . . . . . Garrison Access 1 | . . . . . . . 1 . . . . . Total Hacks 42 | . 9 . 11 1 1 . 18 2 . . . . Successful 23 | . 5 . 7 1 1 . 8 1 . . . . Failed 18 | . 3 . 4 . . . 10 1 . . . . Catastrophic 2 | . . . . . . . 2 . . . . . Database Lockouts 1 | . 1 . . . . . . . . . . . Manual 31 | . 7 . 8 . 1 . 13 2 . . . . Terminals 36 | . 7 . 10 . . . 17 2 . . . . Fabricators . | . . . . . . . . . . . . . Repair Stations . | . . . . . . . . . . . . . Recycling Units 3 | . 2 . 1 . . . . . . . . . Scanalyzers . | . . . . . . . . . . . . . Garrison Access 1 | . . . . . . . 1 . . . . . Terminal Hacks 18 | . 3 . 5 1 1 . 7 1 . . . . Robot Analysis 3 | . 1 . 2 . . . . . . . . . Open Door 1 | . . . . 1 . . . . . . . . Branch Access Points 3 | . . . 1 . . . 1 1 . . . . Alert Level 4 | . 1 . 1 . . . 2 . . . . . Locate Traps 1 | . 1 . . . . . . . . . . . Recall Investigation 1 | . . . . . . . 1 . . . . . Hauler Manifests 4 | . . . 1 . . . 3 . . . . . EX-Prototype ID Bank 1 | . . . . . 1 . . . . . . . Fabricator Hacks . | . . . . . . . . . . . . . Repair Station Hacks . | . . . . . . . . . . . . . Recycling Unit Hacks . | . . . . . . . . . . . . . Scanalyzer . | . . . . . . . . . . . . . Garrison Access Hacks 1 | . . . . . . . 1 . . . . . Seal Access 1 | . . . . . . . 1 . . . . . Unauthorized Hacks 4 | . 2 . 2 . . . . . . . . . Terminals 2 | . 1 . 1 . . . . . . . . . Operators 2 | . 1 . 1 . . . . . . . . . Fabricators . | . . . . . . . . . . . . . Repair Stations . | . . . . . . . . . . . . . Recycling Units 2 | . 1 . 1 . . . . . . . . . Tunnel 2 | . 1 . 1 . . . . . . . . . Scanalyzers . | . . . . . . . . . . . . . Garrison Access . | . . . . . . . . . . . . . Data Cores Recovered . | . . . . . . . . . . . . . Used . | . . . . . . . . . . . . . Hacking Detections 12 | . 2 . 4 . . . 6 . . . . . Full Trace Events 2 | . . . 1 . . . 1 . . . . . Feedback Events . | . . . . . . . . . . . . . Feedback Blocked . | . . . . . . . . . . . . . Robot Schematics Acquired . | . . . . . . . . . . . . . Robots Built . | . . . . . . . . . . . . . Authchips . | . . . . . . . . . . . . . Time . | . . . . . . . . . . . . . Total Robot Build Rating . | . . . . . . . . . . . . . Part Schematics Acquired . | . . . . . . . . . . . . . Parts Built . | . . . . . . . . . . . . . Authchips . | . . . . . . . . . . . . . Time . | . . . . . . . . . . . . . Total Part Build Rating . | . . . . . . . . . . . . . Parts Repaired . | . . . . . . . . . . . . . Time . | . . . . . . . . . . . . . Parts Recycled . | . . . . . . . . . . . . . Recycled Matter . | . . . . . . . . . . . . . Retrieved Matter . | . . . . . . . . . . . . . Retrieved Components . | . . . . . . . . . . . . . Parts Scanalyzed . | . . . . . . . . . . . . . Part Schematics Acquired . | . . . . . . . . . . . . . Parts Damaged . | . . . . . . . . . . . . . Bothacking | -11 -10 -10 -9 -9 -9 -8 -8 -7 -7 -7 -7 -7 ------------ Run | Scr Mat Min Mat Min Exi Min Mat Fac Low Low Zio Dee Used RIF Installer . | . . . . . . . . . . . . . Robots Hacked . | . . . . . . . . . . . . . Non-combat . | . . . . . . . . . . . . . Combat . | . . . . . . . . . . . . . Robot Hacks Applied . | . . . . . . . . . . . . . Relay Couplers Released . | . . . . . . . . . . . . . Fabnet Peak Effective % . | . . . . . . . . . . . . . Robots Rewired 3 | . . . . . 3 . . . . . . . Allies Hacked . | . . . . . . . . . . . . . Hacks Repelled . | . . . . . . . . . . . . . Allies | -11 -10 -10 -9 -9 -9 -8 -8 -7 -7 -7 -7 -7 -------- Run | Scr Mat Min Mat Min Exi Min Mat Fac Low Low Zio Dee Total Allies 9 | . . 3 . 1 3 . . . . . 2 . Largest Group 3 | . . 3 3 1 3 3 3 . . . 2 2 Highest-Rated Group 59 | . . 40 40 31 50 50 50 . . . 59 59 Highest-Rated Ally 31 | . . 16 16 31 21 21 21 . . . 31 31 Total Orders . | . . . . . . . . . . . . . Ally Attacks 96 | . . . 33 . . . 39 . . . . 24 Total Damage 1030 | . . . 322 . . . 519 . . . . 189 Kills 15 | . . . 7 . . . 6 . . . . 2 Allies Corrupted . | . . . . . . . . . . . . . Allies Melted . | . . . . . . . . . . . . . Intel | -11 -10 -10 -9 -9 -9 -8 -8 -7 -7 -7 -7 -7 ------- Run | Scr Mat Min Mat Min Exi Min Mat Fac Low Low Zio Dee Robot Analysis Total 3 | . 1 . 2 . . . . . . . . . Derelict Logs Recovered 7 | . . 2 . 2 . . . . 2 . 1 . Drone Launches . | . . . . . . . . . . . . . Drone Recoveries . | . . . . . . . . . . . . . Exploration | -11 -10 -10 -9 -9 -9 -8 -8 -7 -7 -7 -7 -7 ------------- Run | Scr Mat Min Mat Min Exi Min Mat Fac Low Low Zio Dee Turns Passed 18267 | 72 1344 1680 2288 1152 890 1302 2307 1004 451 1112 1915 2750 Spaces Moved 7449 | 40 425 516 777 475 350 539 857 479 234 558 969 1230 Core 2 | 2 . . . . . . . . . . . . Treads 3637 | 38 425 516 777 475 350 539 517 . . . . . Legs 3389 | . . . . . . . 340 58 234 558 969 1230 Wheels 421 | . . . . . . . . 421 . . . . Hover . | . . . . . . . . . . . . . Flight . | . . . . . . . . . . . . . Fastest Speed 50 | 50 160 320 240 240 240 240 200 145 193 193 193 117 Average Speed 220 | 154 274 320 240 240 240 240 218 155 193 193 193 192 Slowest Speed 320 | 160 320 320 320 240 240 240 317 193 193 193 195 203 Overloaded Moves . | . . . . . . . . . . . . . Propulsion Burnouts . | . . . . . . . . . . . . . Robots Hopped . | . . . . . . . . . . . . . Cave-ins Triggered . | . . . . . . . . . . . . . Exploration Rate (%) 68 | 3 75 99 64 99 83 99 89 19 46 61 80 74 Regions Visited 12 Branch Regions 8 Pre-discovered Areas 7 | . 1 . 1 2 . . . . . . 3 . Known Exits Taken 4 | . . . 1 . . 1 . 1 1 . . . Unknown Exits Taken 8 | 1 1 1 . 1 1 . 1 . . 1 1 . Scrap Searched 18 | . . 1 . 1 . 3 . . 2 7 4 . Spaces Dug 30 | . . . 20 . . . 5 . . 2 3 . Terrain Destroyed 140 | . . . 36 . . . 17 44 . 19 3 21 Melee . | . . . . . . . . . . . . . Projectile 14 | . . . . . . . . 2 . 3 3 6 AOE 126 | . . . 36 . . . 17 42 . 16 . 15 Terrain Rammed . | . . . . . . . . . . . . . Walls Destroyed . | . . . . . . . . . . . . . Machines Disabled . | . . . . . . . . . . . . . Actions | -11 -10 -10 -9 -9 -9 -8 -8 -7 -7 -7 -7 -7 --------- Run | Scr Mat Min Mat Min Exi Min Mat Fac Low Low Zio Dee Total 8539 | 47 501 530 974 486 400 542 1083 634 235 576 1011 1520 Wait 221 | . 2 6 11 . 2 1 39 9 . . 3 148 Move 7437 | 39 424 515 776 474 349 538 856 478 233 557 968 1230 Hop . | . . . . . . . . . . . . . Pick Up 98 | 2 13 . 22 4 2 . 15 18 . 1 10 11 Fast Attach 43 | 6 . . 3 . . . 4 9 . . 1 20 Attach 36 | . 2 . 3 1 . . 6 11 . . 5 8 Detach 19 | . . . 2 1 . . 1 9 . . 1 5 Swap 69 | . 1 . 17 . 2 . 14 11 1 5 8 10 Drop 122 | . 2 . 20 4 5 . 24 20 1 1 12 33 Fire 447 | . 57 9 120 2 2 3 123 67 . 12 3 49 Melee 2 | . . . . . . . . . . . . 2 Ram 2 | . . . . . . . . 2 . . . . Kick . | . . . . . . . . . . . . . Crush 1 | . . . . . . . 1 . . . . . Escape Stasis . | . . . . . . . . . . . . . Rewire 38 | . . . . . 38 . . . . . . . Trap 4 | . . . . . . . . . . . . 4 Miscellaneous . | . . . . . . . . . . . . . Route ------- -11/Scrapyard -10/Materials (discovered 4 exits: *Mat x2 / [*Min x2]) -10/Mines (discovered 2 exits: *Mat x2) -9/Materials (discovered 3 exits: Mat x2 / *Min) -9/Mines (discovered 4 exits: *Mat x2 / *Exi / [*Zio]) -9/Exiles -8/Mines (discovered 2 exits: *Mat x2) -8/Materials (discovered 3 exits: *Fac x3) -7/Factory (discovered 4 exits: [*Fac] / *Sto / *Low x2) -7/Lower Caves -7/Lower Caves -7/Zion (discovered 2 exits: [*Dee] / [*Pro]) -7/Deep Caves (discovered 1 exit: [*Pro]) History --------- Turn | Location | Event 42 | -11/Scrapyard | Discovered new exit (range 16) 73 | -11/Scrapyard | Entered Materials 123 | -10/Materials | Central database locked down 147 | -10/Materials | Discovered new exit (range 6) 301 | -10/Materials | Build established: Mutant 414 | -10/Materials | Discovered new exit (range 7) 787 | -10/Materials | Discovered new exit (range 9) 1319 | -10/Materials | Discovered new exit (range 7) 1417 | -10/Materials | Entered Mines 1439 | -10/Mines | Met a Derelict bent on vengeance 1488 | -10/Mines | Discovered new exit (range 3) 1718 | -10/Mines | Learned Materials trap positions 1945 | -10/Mines | Discovered new exit (range 12) 2256 | -10/Mines | Learned 8 Materials zone layouts 2360 | -10/Mines | Core integrity fell below 50% 2572 | -10/Mines | Found a hidden stash of uninstalled traps 2729 | -10/Mines | Assisted by bots powering up and referring to "LRC-V3" 3097 | -10/Mines | Entered Materials 3097 | -9/Materials | Accompanied by 3 allies 3097 | -9/Materials | Evolved 2 slots: Propulsion x1, Utility x1 3098 | -9/Materials | Identified exit to Materials 3098 | -9/Materials | Identified exit to Mines 3099 | -9/Materials | Loaded intel: 20 trap records 3975 | -9/Materials | Build established: Scavenger-Mutant 5097 | -9/Materials | First assault squad dispatched 5385 | -9/Materials | Entered Mines 5388 | -9/Mines | Received a Mining Laser from a helpful Derelict 5444 | -9/Mines | Met a Derelict shopkeep closing up shop 5994 | -9/Mines | Deemed a non-threat by the Exiles lab entrance 6039 | -9/Mines | Learned location of Storage (-7) 6122 | -9/Mines | A Derelict revealed a hidden shortcut to a safe place 6320 | -9/Mines | Discovered exit to Materials (range 12) 6358 | -9/Mines | Discovered exit to Materials (range 10) 6527 | -9/Mines | Discovered new exit (range 5) 6537 | -9/Mines | Entered Exiles 6537 | -9/Exiles | Found Exiles lab destroyed 6862 | -9/Exiles | Opened EX-Vault 6880 | -9/Exiles | Found AWS/Autocannon 7340 | -9/Exiles | Build established: Mutant 7396 | -9/Exiles | Discovered new exit (range 14) 7427 | -9/Exiles | Entered Mines 7427 | -8/Mines | Accompanied by 3 allies 7880 | -8/Mines | Discovered exit to Materials (range 10) 8101 | -8/Mines | Discovered exit to Materials (range 11) 8729 | -8/Mines | Entered Materials 8729 | -8/Materials | Accompanied by 3 allies 8729 | -8/Materials | Evolved 2 slots: Utility x2 9301 | -8/Materials | Discovered new exit (range 7) 9658 | -8/Materials | Discovered new exit (range 14) 10023 | -8/Materials | Found Prototype Device 10998 | -8/Materials | Discovered new exit (range 5) 11036 | -8/Materials | Entered Factory 11036 | -7/Factory | Evolved 2 slots: Propulsion x1, Weapon x1 11149 | -7/Factory | Discovered new exit (range 16) 11345 | -7/Factory | Build established: Gunner 11715 | -7/Factory | Identified exit to Storage 11715 | -7/Factory | Identified exit to Lower Caves 11726 | -7/Factory | Discovered new exit (range 12) 11732 | -7/Factory | Cargo convoy interrupted 11766 | -7/Factory | Destroyed 10 combat bots 11819 | -7/Factory | Found Prototype Processor 11819 | -7/Factory | Identified Exp. Terrain Scan Processor 11828 | -7/Factory | Found Prototype Processor 11840 | -7/Factory | Found Exp. Terrain Scan Processor 11867 | -7/Factory | Found Exp. Terrain Scan Processor 12040 | -7/Factory | Entered Lower Caves 12065 | -7/Lower Caves | Encountered a Warlord checkpoint 12106 | -7/Lower Caves | Identified exit to Lower Caves 12206 | -7/Lower Caves | Learned Factory stockpile data 12246 | -7/Lower Caves | Build established: Tank 12491 | -7/Lower Caves | Entered another Lower Caves area 12819 | -7/Lower Caves | Encountered a Warlord checkpoint 13586 | -7/Lower Caves | Discovered new exit (range 10) 13603 | -7/Lower Caves | Entered Zion 13744 | -7/Zion | Gained Derelict followers 13815 | -7/Zion | Found Prototype Device 13815 | -7/Zion | Identified Bomb Factory No. 2 13850 | -7/Zion | Discovered new exit (range 15) 14073 | -7/Zion | Learned location of Armory (-4) 14113 | -7/Zion | Build established: Gunner 14219 | -7/Zion | Visited the Megawrench Repair Shop 14219 | -7/Zion | Megawrench repaired 11 parts 14364 | -7/Zion | Learned Factory fabricator intel 14551 | -7/Zion | Discovered new exit (range 5) 14553 | -7/Zion | Saw the warning signs outside the Deep Caves entrance 14636 | -7/Zion | Found Prototype Device 14796 | -7/Zion | Build established: Mutant 15140 | -7/Zion | Identified Mobile Refinery Mk. CCLXVII 15173 | -7/Zion | Found CR-A16's Pointy Stick 15518 | -7/Zion | Entered Deep Caves 15518 | -7/Deep Caves | Accompanied by 2 allies 15901 | -7/Deep Caves | Attacked by Z-Imprinter 15931 | -7/Deep Caves | Allies destroyed Z-Imprinter 16065 | -7/Deep Caves | Found Surveybot 24 Chip 16072 | -7/Deep Caves | Found Surveybot 24 Scanner 16206 | -7/Deep Caves | Found Prototype Protection 16206 | -7/Deep Caves | Identified Zio. Weapon Casing 16240 | -7/Deep Caves | Core integrity fell below 50% 16281 | -7/Deep Caves | Found Zio. Weapon Casing 16397 | -7/Deep Caves | Found Prototype Protection 16397 | -7/Deep Caves | Identified Zio. Heavy Carapace 16697 | -7/Deep Caves | Build established: Gunner 16940 | -7/Deep Caves | Discovered new exit (range 6) 17438 | -7/Deep Caves | Found Zio. Weapon Casing 17445 | -7/Deep Caves | Found Zio. Heavy Carapace 17518 | -7/Deep Caves | Found Zio. Weapon Casing 17521 | -7/Deep Caves | Found Zio. Weapon Casing 17762 | -7/Deep Caves | Spotted as-16106 17763 | -7/Deep Caves | Core integrity fell below 20% 17765 | -7/Deep Caves | Build established: Tank 17806 | -7/Deep Caves | Lost 3 parts (1p2u) 18222 | -7/Deep Caves | Destroyed as-16106 18235 | -7/Deep Caves | Exposed GOLEM chamber 18258 | -7/Deep Caves | Triggered Deep Caves wall 18268 | -7/Deep Caves | Destroyed by as-06141 with Assembled F-torch Last Messages --------------- 18261_ as-74820 destroyed. 18261_ A GOLEM Unit tumbles out of the Wall Chamber. 18261_ Zio. Heavy Carapace destroyed. 18262_ as-61966 destroyed. 18263_ Destroyed Asb. Hover Unit. 18263_ as-06701 destroyed. 18263_ as-36310 destroyed. 18263_ A GOLEM Unit tumbles out of the Wall Chamber. 18265_ as-15395 misfires. 18265_ Dropped Zio. Biocell. 18265_ as-71670 misfires. 18266_ Extracted 5 energy. 18266_ as-46747 destroyed. 18266_ as-72847 destroyed. 18266_ as-35202 destroyed. 18267_ Extracted 43 energy. 18267_ Corrupted GOLEM Unit springs to life. 18267_ as-27880 misfires. 18267_ as-11920 destroyed. 18268_ as-83553 GOLEM Unit beginning Prototype Leg integration. Map ----- +----------------------------------------------------+ | ?????????????????????????????# ## | | ?????????????????????????????# ## | | ?????????????????????????????# ## | | ?????????????????????????????## ## | | ??????????????????????????????# | | ??????????????????????????????# | | ??????????????????????????????# | | ??????????????????????????????## | | ???????????????????????????????## | | ??????????????????? ?????# | | ??????????? !! ????# | | ????????? = #????## | | ???????a a ##????# | | ??????? aaaa l #???## | | ????????aa = M = #???# | | ???????? a = = #???# | | ???????##a a ##??## | | ???????"!!a = ! "#???# | | ????????!! a= #????## | | ?????????G ! #?????#### | | ????????"" = ##???????? | | ????????"G a !/ l #???????? | | ????????# ! #####???? | | ????????" a / # ##??? | | ????????" !aaa """""#### | | ????????" @ * | | ????????""" * | | ????????" * l | | ????????""h "#""#### | | ????????" #####??# | | ????????"" ##??????# | | ????????" # # #???????# | | ????????" #### ## ## ##???????# | | ????????""" ###??# ## ####????????## | | ?????????? ?????#### #????????????# | | ?????????#####?????????#?????????????? | | | | | | | | | | | | | | | | | | | | | | | | | | | | | +----------------------------------------------------+ Best States ------------- Heat Dissipation 61 Energy Generation 27 Energy Capacity 350 Matter Stores 300 Matter Capacity 300 Sight Range 16 Terrain Scan Density 1010 Armor Coverage 1200 Weapon Shielding 100 Weapon Cycling 15 Evasion (%) 55 Targeting Accuracy 8 Recoil Reduction 3 Salvage Targeting 4 Item Schematics ----------------- None Robot Schematics ------------------ None Fabricated ------------ Nothing Alien Tech Used ----------------- None Achievements -------------- None Challenges ------------ None Game ------ Seed MasterGravityProtection Manual? 0 Play Time 01:26:11 Cumulative 383.5 hours Start 2022.05.07 @ 20:56:26 End 2022.05.08 @ 21:39:59 Sessions 5 Manual Loads 0 Difficulty Rogue Special Mode None Game No. 532 Rogue 532 Adventurer 0 Explorer 0 Win Type - Total 7 Types 5/0/1/1/0/0/0/0/0 Lore% 84 Gallery% 88 Achievement% 69 Wizard Run 0 Options --------- ASCII 0 Keyboard 1 Movement Numpad Keybinds 0 Fullscreen 2 Font 24/Smallcaps Map View 76x50 Tactical HUD 1 Map Filters NONE Filters NONE Steam 1 RUN: e88f91c3-490c-4efa-96b4-336afe25542a